bitfinex-derivatives/quotes_BNBF0:USTF0_20250303
["timestamp","ask_amount","ask_price","bid_price","bid_amount"]
[1740985643802,0.689,600.6,600.13,0.26980565]
[1740985644001,0.689,600.6,600.08,1.26566392]
[1740985644207,0.689,600.6,600.09,0.26960183]
[1740985644410,0.689,600.6,600.1,0.26960183]
[1740985644608,0.689,600.6,600.11,0.26960183]
[1740985644809,0.689,600.6,600.12,0.26960183]
[1740985645004,0.689,600.6,600.13,0.26960183]
[1740985645206,0.689,600.6,600.14,0.26960183]
[1740985645512,0.689,600.6,600.15,0.26960183]
[1740985645708,0.689,600.6,600.53,1.22957671]
[1740985645903,0.689,600.6,600.54,0.26960183]
[1740985646609,0.689,600.6,600.55,0.26960183]
[1740985646810,0.689,600.6,600.54,0.26960183]
[1740985647006,0.689,600.6,600.55,0.26960183]
[1740985647305,0.689,600.6,600.53,1.22957671]
[1740985647609,0.689,600.6,600.54,0.26980443]
[1740985648110,0.689,600.6,600.55,0.26980443]
[1740985648306,0.689,600.6,600.56,0.26980443]
[1740985648511,0.689,600.6,600.57,0.26980443]
[1740985648810,0.689,600.6,600.58,0.26980443]
[1740985649210,0.689,600.6,600.59,0.26980443]
[1740985649909,0.689,600.6,600.29,0.26980443]
[1740985650209,0.689,600.6,600.28,1.22482446]
[1740985650210,0.689,600.6,600.3,0.60297117]
[1740985650411,0.689,600.6,600.31,0.26980443]
[1740985650610,0.689,600.6,600.3,0.33316674]
[1740985650611,0.689,600.6,600.32,0.26980443]
[1740985650807,0.689,600.6,600.33,0.26980443]
[1740985651013,0.689,600.6,600.34,0.26980443]
[1740985651211,0.689,600.6,600.35,0.26980443]
[1740985651411,0.689,600.6,600.3,0.33316674]
[1740985651412,0.689,600.6,600.36,0.26980443]
[1740985651611,0.689,600.6,600.37,0.26980443]
[1740985651812,0.689,600.6,600.31,0.26980443]
[1740985652009,0.689,600.6,600.32,0.26980443]
[1740985652210,0.689,600.6,600.19,1.22482446]
[1740985652211,0.689,600.6,600.33,0.60295453]
[1740985652510,0.689,600.6,600.34,0.26980443]
[1740985652711,0.689,600.6,600.35,0.26980443]
[1740985652908,0.689,600.6,600.33,0.3331501]
[1740985652909,0.689,600.6,600.36,0.26980443]
[1740985653113,0.689,600.6,600.37,0.26980443]
[1740985653307,0.689,600.6,600.34,0.26980443]
[1740985653507,0.689,600.6,600.35,0.26980443]
[1740985653712,0.689,600.6,600.34,0.26980443]
[1740985653907,0.689,600.6,600.35,0.26991279]
[1740985654106,0.689,600.6,600.36,0.26991279]
[1740985654306,0.689,600.6,600.34,0.26991279]
[1740985654513,0.689,600.6,600.35,0.26991279]
[1740985654813,0.689,600.6,600.33,0.3331501]
[1740985654814,0.689,600.6,600.36,0.60304624]
[1740985655015,0.689,600.6,600.37,0.26991279]
[1740985655315,0.689,600.6,600.38,0.26991279]
[1740985655512,0.689,600.6,600.39,0.26991279]
[1740985655712,0.689,600.6,600.4,0.26991279]
[1740985655912,0.689,600.6,600.37,0.26991279]
[1740985656113,0.689,600.6,600.38,0.26991279]
[1740985656315,0.689,600.6,600.39,0.26991279]
[1740985656514,0.689,600.6,600.37,0.26991279]
[1740985656715,0.689,600.6,600.38,0.26991279]
[1740985656910,0.689,600.6,600.37,0.26991279]
[1740985657114,0.689,600.6,600.38,0.26991279]
[1740985657414,0.689,600.6,600.39,0.26991279]
[1740985657618,0.689,600.6,600.4,0.26991279]
[1740985657916,0.689,600.6,600.41,0.26991279]
[1740985658112,0.689,600.6,600.42,0.26991279]
[1740985658414,0.689,600.6,600.43,0.26991279]
[1740985658620,0.82,600.62,600.37,0.26991279]
[1740985658812,0.82,600.62,600.38,0.26991279]
[1740985659016,0.82,600.62,600.37,0.26991279]
[1740985659213,0.82,600.62,600.39,0.3331168]
[1740985659416,0.82,600.62,600.4,0.26991279]
[1740985659613,0.82,600.62,600.41,0.33310571]
[1740985659816,0.82,600.62,600.42,0.26991279]
[1740985660217,0.82,600.62,600.43,0.26991279]
[1740985660418,0.82,600.62,600.44,0.26991279]
[1740985660612,0.82,600.62,600.45,0.26991279]
[1740985660817,0.82,600.62,600.46,0.26991279]
[1740985661017,0.82,600.62,600.47,0.26991279]
[1740985661214,0.82,600.62,600.48,0.26991279]
[1740985661414,0.82,600.62,600.41,0.33310571]
[1740985661415,0.82,600.62,600.49,0.26991279]
[1740985661612,0.82,600.62,600.5,0.33305578]
[1740985661812,0.82,600.62,600.51,0.26991279]
[1740985662019,0.82,600.62,600.52,0.33304469]
[1740985662230,0.82,600.62,600.53,0.26991279]
[1740985662421,0.82,600.62,600.54,0.3330336]
[1740985662619,0.82,600.62,600.55,0.26991279]
[1740985663119,0.82,600.62,600.56,0.6029353]
[1740985663319,0.82,600.62,600.57,0.26991279]
[1740985663521,0.82,600.62,600.56,0.33302251]
[1740985663721,0.82,600.62,600.57,0.26986908]
[1740985663923,0.82,600.62,600.58,0.26986908]
[1740985664218,0.82,600.62,600.59,0.26986908]
[1740985664417,0.82,600.62,600.6,0.33300033]
[1740985664617,0.82,600.62,600.61,0.26986908]
[1740985667020,1.026,600.76,600.61,0.26986908]
[1740985667724,1.026,600.76,600.6,0.33300033]
[1740985667924,1.026,600.76,600.21,1.22482446]
[1740985668126,1.026,600.76,600.22,0.27005033]
[1740985668724,1.026,600.76,600.21,1.22482446]
[1740985668925,1.026,600.76,600.22,0.27013012]
[1740985669124,1.026,600.76,600.23,0.27011579]
[1740985669323,1.026,600.76,600.24,0.27011579]
[1740985669527,1.026,600.76,600.25,1.49494025]
[1740985669728,1.026,600.76,600.26,0.27011579]
[1740985673026,1.026,600.76,599.97,0.27011579]
[1740985673231,1.026,600.76,599.98,0.27011579]
[1740985673529,1.026,600.76,599.99,0.27011579]
[1740985673729,1.026,600.76,599.97,0.27011579]
[1740985673923,1.026,600.76,599.98,0.27011579]
[1740985674124,1.026,600.76,599.99,0.27011579]
[1740985674329,1.026,600.76,600.0,0.27011579]
[1740985674527,1.026,600.76,599.6,1.47549206]
[1740985674528,1.026,600.76,600.01,0.27011579]
[1740985674829,1.026,600.76,600.02,0.27011579]
[1740985675030,1.026,600.76,600.03,0.27020139]
[1740985675229,1.026,600.76,599.64,0.27020139]
[1740985675430,1.026,600.76,599.66,0.33352232]
[1740985675629,1.026,600.76,599.67,0.27020139]
[1740985676330,1.026,600.76,599.68,0.3335112]
[1740985676530,1.026,600.76,599.69,0.27020139]
[1740985676829,1.026,600.76,599.7,0.33350008]
[1740985677030,1.026,600.76,599.71,0.27020139]
[1740985677428,1.026,600.76,599.72,0.27020139]
[1740985677627,1.026,600.76,599.73,0.27020139]
[1740985677828,1.026,600.76,599.74,0.27020139]
[1740985678132,1.026,600.76,599.7,0.33350008]
[1740985678133,1.026,600.76,599.75,0.27020139]
[1740985678329,1.026,600.76,599.71,0.27020139]
[1740985678525,1.026,600.76,599.72,0.60369035]
[1740985678723,1.026,600.76,599.73,0.60368479]
[1740985679026,1.026,600.76,599.74,0.60367923]
[1740985679226,1.026,600.76,599.75,0.27020139]
[1740985679828,1.026,600.76,599.74,0.33347784]
[1740985680029,1.026,600.76,599.75,0.27029723]
[1740985681931,0.33291718,600.75,599.75,0.27029723]
[1740985682630,1.196,600.74,599.76,0.27039882]
[1740985682832,1.196,600.74,599.75,0.27039882]
[1740985683028,1.196,600.74,599.77,0.27039882]
[1740985683232,1.196,600.74,599.74,0.33347784]
[1740985683730,1.196,600.74,599.11,1.22482446]
[1740985683926,2.79571568,600.74,599.13,0.33381736]
[1740985684130,1.59971568,600.73,599.14,0.27044361]
[1740985684330,1.59971568,600.73,599.15,0.27045471]
[1740985684527,1.196,600.74,599.14,0.27045471]
[1740985684731,1.196,600.74,599.15,0.27045471]
[1740985684932,1.196,600.74,599.14,0.27045471]
[1740985685235,1.196,600.74,599.15,0.27045471]
[1740985685427,1.196,600.74,599.14,0.27045471]
[1740985685626,0.30621695,600.73,599.15,0.27045471]
[1740985685832,0.30621695,600.73,599.16,0.27045471]
[1740985686032,0.30621695,600.73,599.13,0.33381736]
[1740985686033,0.30621695,600.73,599.14,0.27045471]
[1740985686230,0.30621695,600.73,599.15,0.27045471]
[1740985686433,0.923,600.72,599.16,0.27045471]
[1740985686632,0.30621695,600.71,599.17,0.27045471]
[1740985686829,0.30621695,600.71,599.14,0.27045471]
[1740985687029,0.923,600.72,599.15,0.27045471]
[1740985687231,0.923,600.72,599.14,0.27045471]
[1740985687433,0.923,600.72,598.49,1.22957671]
[1740985687434,5.07655822,600.72,599.15,0.60429405]
[1740985687637,4.15355822,600.71,599.16,0.27048783]
[1740985687839,4.15355822,600.7,599.16,0.27048783]
[1740985688029,4.14690299,600.69,599.16,0.27048783]
[1740985688231,0.923,600.72,599.17,0.27048783]
[1740985688538,0.923,600.72,599.18,0.27048783]
[1740985688736,0.923,600.72,599.19,0.27048783]
[1740985688936,0.923,600.72,599.21,0.3337728]
[1740985689133,0.923,600.72,599.22,0.27042499]
[1740985689337,0.33293935,600.71,599.24,0.33375609]
[1740985689538,0.33293935,600.71,599.25,0.27042499]
[1740985689739,0.33293935,600.71,599.27,0.33373938]
[1740985689935,0.33293935,600.71,599.28,0.27042499]
[1740985690133,0.33293935,600.71,599.29,0.33372824]
[1740985690339,0.33293935,600.71,599.3,0.27042499]
[1740985690736,0.33293935,600.71,599.31,0.3337171]
[1740985691040,0.33293935,600.71,599.32,0.27042499]
[1740985691240,0.33293935,600.71,599.33,0.33370597]
[1740985691439,0.33293935,600.71,599.34,0.27042499]
[1740985692443,0.33293935,600.71,599.33,0.33370597]
[1740985692835,0.33293935,600.71,599.34,0.27057226]
[1740985693543,0.33293935,600.71,599.35,0.27055619]
[1740985693743,0.33293935,600.71,599.33,0.33370597]
[1740985693940,0.30631615,600.7,599.33,0.33370597]
[1740985694137,0.33295598,600.68,599.33,0.33370597]
[1740985694340,0.30631615,600.67,599.33,0.33370597]
[1740985694542,0.33297261,600.65,599.33,0.33370597]
[1740985694938,0.33297261,600.65,599.34,0.27057959]
[1740985695242,0.30631084,600.64,599.34,0.27057959]
[1740985695543,0.30632972,600.63,599.35,0.2706184]
[1740985695737,0.30632972,600.63,599.33,0.33370597]
[1740985696637,0.30632972,600.63,598.2,1.22482446]
[1740985696837,0.30632972,600.63,598.32,0.33426928]
[1740985697038,0.30637884,600.62,598.33,0.27066636]
[1740985697342,0.841,600.64,598.32,0.33426928]
[1740985697343,0.30637884,600.61,598.34,0.27066636]
[1740985697542,0.30637884,600.6,598.35,0.27066636]
[1740985697746,0.30637884,600.63,598.36,0.27066636]
[1740985697937,0.30637884,600.62,598.37,0.27066636]
[1740985698245,0.30637884,600.61,598.38,0.27066636]
[1740985698645,0.841,600.64,598.32,0.33426928]
[1740985698646,0.30637884,600.6,598.39,0.27066636]
[1740985698844,0.30637884,600.6,598.32,0.33426928]
[1740985698845,0.30637884,600.59,598.4,0.27066636]
[1740985699145,0.30637884,600.58,598.41,0.27066636]
[1740985699345,0.30637884,600.57,598.42,0.27066636]
[1740985699645,0.30637884,600.56,598.43,0.27066636]
[1740985699839,0.30637884,600.63,598.44,0.27066636]
[1740985700039,0.30637884,600.62,598.45,0.27066636]
[1740985700244,0.30638806,600.61,598.46,0.270676]
[1740985700439,0.30638806,600.63,598.47,0.270676]
[1740985700644,0.30638806,600.62,598.48,0.270676]
[1740985700845,0.30638806,600.62,598.32,0.33426928]
[1740985700846,0.30638806,600.61,598.49,0.270676]
[1740985701045,0.30638806,600.61,598.5,0.270676]
[1740985701345,0.30638806,600.61,598.51,0.270676]
[1740985701547,0.30638806,600.61,598.52,0.270676]
[1740985701740,0.858,600.62,598.32,0.33426928]
[1740985701936,0.30645887,600.61,598.53,0.27074564]
[1740985702139,0.30645887,600.6,598.54,0.27074564]
[1740985702340,0.30645887,600.59,598.55,0.27074564]
[1740985702542,0.30645887,600.58,598.55,0.27074564]
[1740985702743,0.30645887,600.58,598.56,0.27074564]
[1740985702945,0.30645887,600.57,598.33,0.27074564]
[1740985703139,0.30645887,600.61,598.34,0.27074564]
[1740985703344,0.30645887,600.61,598.32,0.33426928]
[1740985703345,0.30645887,600.61,598.33,0.27074564]
[1740985703545,0.3064428,600.6,598.34,0.27072868]
[1740985703742,0.3064428,600.59,598.35,0.27072868]
[1740985704143,0.3064428,600.61,598.35,0.27072868]
[1740985704347,0.3064428,600.61,598.32,0.33426928]
[1740985704348,0.3064428,600.61,598.36,0.27072868]
[1740985704550,0.3064428,600.61,598.37,0.27072868]
[1740985704745,0.3064428,600.61,598.38,0.27072868]
[1740985704942,0.3064428,600.61,598.32,0.33426928]
[1740985704943,0.3064428,600.61,598.39,0.27072868]
[1740985705149,0.3064428,600.61,598.33,0.27072868]
[1740985705449,0.3064428,600.61,598.44,0.33420225]
[1740985705646,0.3064428,600.61,598.45,0.27072868]
[1740985705851,0.3064428,600.61,598.46,0.27072868]
[1740985706051,0.3064428,600.61,598.47,0.27072868]
[1740985706246,0.858,600.62,598.44,0.33420225]
[1740985706551,0.30635623,600.61,598.45,0.27064392]
[1740985706950,0.30635623,600.61,598.44,0.33420225]
[1740985706951,0.30635623,600.61,598.46,0.27064392]
[1740985707151,0.30635623,600.61,598.45,0.27064392]
[1740985707348,0.30635623,600.61,598.46,0.27064392]
[1740985707549,0.30635623,600.61,598.47,0.27064392]
[1740985707753,0.30635623,600.61,598.48,0.27064392]
[1740985708049,0.30635623,600.61,598.5,0.33416875]
[1740985708256,0.30635623,600.61,598.51,0.27064392]
[1740985708453,0.30635623,600.61,598.52,0.27064392]
[1740985708655,0.30635623,600.61,598.53,0.27064392]
[1740985708855,0.866,600.6,598.54,0.27064392]
[1740985709058,0.30635623,600.59,598.55,0.27064392]
[1740985709259,0.30635623,600.59,598.56,0.27064392]
[1740985709454,0.30635623,600.59,598.57,0.27064392]
[1740985709759,0.30635623,600.59,598.58,0.27064392]
[1740985710060,0.30635623,600.59,598.6,0.33411293]
[1740985710259,0.30635623,600.59,598.61,0.27064392]
[1740985710452,0.30635623,600.59,598.62,0.27064392]
[1740985710652,0.30635623,600.59,598.63,0.27064392]
[1740985710857,0.30635623,600.59,598.64,0.27064392]
[1740985711058,0.30635623,600.59,598.65,0.27064392]
[1740985711253,0.30635623,600.59,598.67,0.33407386]
[1740985711456,0.33301696,600.57,598.68,0.27064392]
[1740985711762,0.30635623,600.56,598.7,0.33405712]
[1740985711953,0.30635623,600.56,598.71,0.27064392]
[1740985712357,1.74165457,600.55,598.71,0.27064392]
[1740985712558,0.30635623,600.54,598.71,0.27064392]
[1740985713163,0.30635623,600.54,598.72,0.33404596]
[1740985713458,0.33304469,600.52,598.73,0.27064392]
[1740985713667,0.30635623,600.51,598.74,0.3340348]
[1740985713868,0.30635623,600.51,598.75,0.27064392]
[1740985716972,0.30635623,600.51,598.74,0.3340348]
[1740985717772,0.33304469,600.52,598.74,0.3340348]
[1740985717968,0.30651267,600.51,598.75,0.27079772]
[1740985718571,0.30651267,600.51,598.74,0.3340348]
[1740985718774,0.30651267,600.51,598.75,0.27079663]
[1740985719069,0.30651267,600.51,598.74,0.3340348]
[1740985720276,1.57559712,600.5,598.74,0.3340348]
[1740985720477,1.88210979,600.49,598.74,0.3340348]
[1740985720678,0.30651267,600.48,598.74,0.3340348]
[1740985720876,0.30651267,600.51,598.74,0.3340348]
[1740985721077,1.88210979,600.5,598.74,0.3340348]
[1740985721278,0.30651267,600.49,598.21,1.22482446]
[1740985721576,1.88210979,600.48,598.23,0.33431957]
[1740985721777,1.88210979,600.47,598.24,0.27089971]
[1740985721971,1.88210979,600.46,598.24,0.27089971]
[1740985722171,0.30651267,600.45,598.24,0.27089971]
[1740985722377,1.57559712,600.44,598.24,0.27089971]
[1740985722578,4.82055251,600.45,598.25,0.27086794]
[1740985722777,4.40313674,600.44,598.25,0.27086794]
[1740985723072,4.40313674,600.43,598.26,0.27086794]
[1740985723375,4.41336125,600.42,598.28,0.33429163]
[1740985723573,0.33315565,600.32,598.29,0.27086794]
[1740985723877,0.30658423,600.31,598.3,0.27086794]
[1740985724177,0.33315565,600.32,598.28,0.33429163]
[1740985724178,0.30650923,600.3,598.31,0.27079427]
[1740985724377,1.74215592,600.3,598.32,0.27079427]
[1740985724576,0.30650923,600.29,598.33,0.27079427]
[1740985724776,0.30650923,600.29,598.34,0.27079427]
[1740985724978,0.30650923,600.29,598.35,0.27079427]
[1740985725277,1.74215592,600.3,598.36,0.27079427]
[1740985725477,1.74215592,600.3,598.37,0.27079427]
[1740985725773,0.30642625,600.29,598.39,0.33423018]
[1740985725978,1.74215592,600.3,598.4,1.49553746]
[1740985726178,1.74215592,600.3,598.41,0.270713]
[1740985726380,1.74215592,600.3,598.42,0.60492642]
[1740985726579,1.74215592,600.3,598.43,0.270713]
[1740985726778,1.74215592,600.3,598.45,0.33419667]
[1740985727079,1.74215592,600.3,598.46,0.270713]
[1740985727279,0.30646264,600.29,598.47,0.270713]
[1740985727480,0.30646264,600.29,598.46,0.270713]
[1740985727673,0.30646264,600.29,598.47,0.270713]
[1740985727877,0.30646264,600.29,598.48,0.270713]
[1740985728078,0.631,600.28,598.46,0.270713]
[1740985728274,0.631,600.28,598.45,0.33419667]
[1740985728275,0.30646264,600.27,598.47,0.270713]
[1740985728577,0.30646264,600.27,598.72,1.22482446]
[1740985728782,0.30646264,600.27,598.73,0.60475338]
[1740985728982,4.11908596,600.27,598.74,0.6048067]
[1740985729283,4.11908596,600.26,598.75,0.60480112]
[1740985729482,4.11908596,600.25,598.76,0.2707719]
[1740985729680,4.11908596,600.24,598.76,0.2707719]
[1740985729877,4.11908596,600.23,598.76,0.2707719]
[1740985730083,4.11908596,600.22,598.76,0.2707719]
[1740985730281,4.11908596,600.21,598.77,0.33401807]
[1740985730482,4.11908596,600.2,598.78,0.2707719]
[1740985730683,4.45231377,600.19,598.78,0.2707719]
[1740985730885,4.11908596,600.18,598.78,0.2707719]
[1740985731084,4.11908596,600.17,598.78,0.2707719]
[1740985731282,4.11908596,600.16,598.78,0.2707719]
[1740985731584,4.11908596,600.15,598.78,0.2707719]
[1740985731785,4.11908596,600.14,598.78,0.2707719]
[1740985731982,4.13521835,600.13,598.78,0.2707719]
[1740985732284,1.58426383,600.12,598.79,0.27074888]
[1740985732485,0.33322781,600.19,598.78,0.27074888]
[1740985732678,0.33322781,600.19,598.79,0.27074888]
[1740985732882,0.33322781,600.19,598.8,0.27074888]
[1740985733084,1.89083362,600.18,598.81,0.27074888]
[1740985733387,1.89083362,600.17,598.82,0.27074888]
[1740985733584,1.89083362,600.16,598.78,0.27074888]
[1740985733884,1.89083362,600.16,598.77,0.33401807]
[1740985733885,1.89083362,600.15,598.79,0.27074888]
[1740985734080,1.89083362,600.14,598.8,0.27074888]
[1740985734283,1.89083362,600.13,598.81,0.27074888]
[1740985734480,1.58426383,600.12,598.77,0.33401807]
[1740985734678,1.58426383,600.11,598.77,0.33401807]
[1740985734878,1.58426383,600.1,598.65,1.22482446]
[1740985735185,1.58426383,600.09,598.66,0.27090561]
[1740985735386,1.58426383,600.08,598.66,0.27090561]
[1740985735578,0.3333,600.06,598.66,0.27090561]
[1740985735781,1.91756383,600.06,598.66,0.27090561]
[1740985735980,0.3333,600.06,598.66,0.27090561]
[1740985736183,1.58426383,600.05,598.66,0.27090561]
[1740985736379,1.58426383,600.04,598.66,0.27090561]
[1740985736584,1.58426383,600.05,598.66,0.27090561]
[1740985736887,0.33331666,600.03,598.66,0.27090561]
[1740985737082,0.33331666,600.03,598.36,1.22482446]
[1740985737386,0.33331666,600.03,598.37,0.6051303]
[1740985737586,0.33331666,600.03,598.37,0.33424135]
[1740985737787,0.33331666,600.03,598.38,0.27088853]
[1740985738391,0.33331666,600.03,598.37,0.33424135]
[1740985738587,0.33331666,600.03,598.38,0.27087137]
[1740985739392,1.74235945,600.02,598.39,0.27087137]
[1740985739588,1.74235945,600.02,598.37,0.33424135]
[1740985739589,1.74235945,600.02,598.4,0.27087137]
[1740985739791,1.74235945,600.02,598.41,0.27087137]
[1740985740184,1.74235945,600.02,598.37,0.33424135]
[1740985740185,1.74235945,600.02,598.42,0.27087137]
[1740985740588,1.74235945,600.02,598.43,0.27087137]
[1740985740893,1.74235945,600.02,598.44,0.27087137]
[1740985741087,1.74235945,600.02,598.45,0.27087137]
[1740985741291,5.90364664,600.02,598.38,0.27087137]
[1740985741494,5.90364664,600.02,598.37,0.33424135]
[1740985741495,4.16128719,600.01,598.39,0.27087137]
[1740985741694,1.60049507,600.0,598.38,0.27087137]
[1740985741895,1.74235945,600.02,598.39,0.27087137]
[1740985742096,1.74235945,600.02,598.82,1.22482446]
[1740985742289,1.74235945,600.02,598.83,0.27087137]
[1740985743097,0.33332777,600.01,598.83,0.27087137]
[1740985744395,0.33332777,600.01,598.66,1.22482446]
[1740985744596,0.33332777,600.01,598.84,0.27070208]
[1740985744797,0.33332777,600.01,598.85,0.27070208]
[1740985744998,0.33332777,600.01,598.86,0.27070208]
[1740985745191,0.33332777,600.01,598.67,0.27070208]
[1740985745394,0.33332777,600.01,598.68,0.27070208]
[1740985745596,0.33332777,600.01,598.69,0.27070208]
[1740985745798,0.909,600.1,598.7,0.27070208]
[1740985745997,0.909,600.1,598.71,0.27070208]
[1740985746200,1.41840856,601.23,598.71,0.27070208]
[1740985746395,4.18444884,601.22,598.72,0.27070208]
[1740985746597,4.18444884,601.21,598.72,0.27070208]
[1740985746793,4.18444884,601.2,598.73,0.27070208]
[1740985747098,4.18444884,601.19,598.74,0.27070208]
[1740985747297,4.18653226,601.18,598.75,0.27070208]
[1740985747493,4.18653226,601.17,598.76,0.27070208]
[1740985747700,4.18653226,601.16,599.22,1.22482446]
[1740985747899,4.18653226,601.15,599.23,0.27070208]
[1740985748099,4.18653226,601.14,599.23,0.27070208]
[1740985748300,4.18653226,601.13,599.23,0.27070208]
[1740985748599,4.18653226,601.12,599.23,0.27070208]
[1740985748800,4.18653226,601.11,599.23,0.27070208]
[1740985749099,4.18653226,601.1,599.23,0.27070208]
[1740985749300,0.946,600.14,599.24,0.27070208]
[1740985749500,0.946,600.14,599.25,0.27070208]
[1740985749701,0.946,600.14,599.23,0.27070208]
[1740985749898,0.946,600.14,599.24,0.27070208]
[1740985750102,0.946,600.14,599.07,0.27070208]
[1740985750301,0.946,600.14,599.08,0.27070208]
[1740985750601,0.946,600.14,599.09,0.27070208]
[1740985750801,0.946,600.14,599.07,0.27070208]
[1740985750999,0.946,600.14,599.08,0.27070208]
[1740985751201,0.946,600.14,599.09,0.27070208]
[1740985751396,1.27925557,600.14,599.1,0.27070208]
[1740985751701,1.27925557,600.14,599.11,0.27070208]
[1740985751899,1.27925557,600.14,599.12,0.27070208]
[1740985752096,1.27925557,600.14,599.07,0.27070208]
[1740985752304,1.27925557,600.14,599.08,0.27070208]
[1740985752700,1.27925557,600.14,599.09,0.27070208]
[1740985752897,1.27925557,600.14,598.97,0.27070208]
[1740985753102,1.27925557,600.14,598.98,0.27070208]
[1740985753304,1.27925557,600.14,598.97,0.27070208]
[1740985753604,1.27925557,600.14,598.98,0.27070208]
[1740985753804,1.27925557,600.14,598.99,0.27070208]
[1740985754104,1.27925557,600.14,599.0,0.27070208]
[1740985754300,1.27925557,600.14,598.97,0.27070208]
[1740985754503,1.27925557,600.14,598.98,0.27070208]
[1740985754703,1.27925557,600.14,598.89,0.27070208]
[1740985755005,1.27925557,600.14,598.9,0.27070208]
[1740985755203,1.27925557,600.14,598.89,0.27070208]
[1740985755397,1.27925557,600.14,598.9,0.27070208]
[1740985755604,0.30649604,600.13,598.91,0.27070208]
[1740985755802,1.27925557,600.14,598.92,0.27079855]
[1740985755998,1.27925557,600.14,598.89,0.27079855]
[1740985756203,1.27925557,600.14,598.9,0.27079855]
[1740985756501,0.854,600.13,598.91,0.27079855]
[1740985756698,0.854,600.13,598.89,0.27079855]
[1740985756899,0.854,600.13,598.88,1.22482446]
[1740985756900,0.854,600.13,598.9,0.27079855]
[1740985757106,0.854,600.13,598.91,0.27079855]
[1740985757405,1.74191611,600.12,598.88,1.22482446]
[1740985757599,1.74191611,600.12,598.89,0.27079337]
[1740985758602,1.74191611,600.12,598.59,0.27079337]
[1740985758803,1.74191611,600.12,598.6,0.27079337]
[1740985759000,1.74191611,600.12,598.58,1.22482446]
[1740985759206,1.74191611,600.12,598.59,0.27079851]
[1740985760006,1.74191611,600.12,598.58,1.22482446]
[1740985760206,5.0437928,600.13,598.58,1.22482446]
[1740985760403,4.1897928,600.12,598.58,1.22482446]
[1740985760608,0.854,600.13,598.58,1.22482446]
[1740985760609,4.1897928,600.11,598.58,1.22482446]
[1740985760809,4.1897928,600.1,598.58,1.22482446]
[1740985761008,1.61145877,600.09,598.58,1.22482446]
[1740985761207,5.04480678,600.13,598.59,0.27075821]
[1740985761404,4.19080678,600.12,598.59,0.27075821]
[1740985761605,4.19080678,600.11,598.59,0.27075821]
[1740985761806,4.19080678,600.1,598.59,0.27075821]
[1740985762008,4.19080678,600.09,598.59,0.27075821]
[1740985762209,4.19080678,600.08,598.59,0.27075821]
[1740985762408,4.19080678,600.07,598.59,0.27075821]
[1740985762605,4.19080678,600.06,598.59,0.27075821]
[1740985762807,4.19080678,600.05,598.59,0.27075821]
[1740985763006,4.19080678,600.04,598.59,0.27075821]
[1740985763203,4.19080678,600.03,598.59,0.27075821]
[1740985763411,4.19080678,600.02,598.59,0.27075821]
[1740985763710,4.19080678,600.01,598.6,0.27075821]
[1740985764010,4.19080678,600.0,598.61,0.27075821]
[1740985764210,4.19080678,599.99,598.62,0.27081185]
[1740985764407,4.19080678,599.98,598.63,0.27081185]
[1740985764608,4.19080678,599.97,598.64,0.27081185]
[1740985764805,4.19080678,599.96,598.56,0.27081185]
[1740985765005,4.19080678,599.96,598.55,1.22482446]
[1740985765006,4.19080678,599.95,598.57,0.2708189]
[1740985765206,1.61145877,599.94,598.58,0.2708189]
[1740985765406,2.46545877,600.13,598.59,0.2708189]
[1740985765705,0.854,600.13,598.55,1.22482446]
[1740985765910,0.854,600.13,598.31,1.22957671]
[1740985765911,0.854,600.13,598.59,1.22482446]
[1740985766106,0.854,600.13,598.6,0.27079803]
[1740985766613,0.854,600.13,598.61,0.33410734]
[1740985766806,0.854,600.13,598.62,0.27079803]
[1740985767406,0.854,600.13,598.63,0.33409618]
[1740985767607,0.854,600.13,598.64,0.27079803]
[1740985768412,0.33327223,600.11,598.64,0.27079803]
[1740985769411,1.74205417,600.1,598.64,0.27079803]
[1740985770006,1.74205417,600.1,598.65,0.33408502]
[1740985770210,1.74205417,600.1,598.66,0.27079803]
[1740985770405,1.74205417,600.1,598.65,0.33408502]
[1740985770607,1.036,600.09,598.66,0.27075602]
[1740985770808,1.036,600.09,598.67,0.60482988]
[1740985771109,1.036,600.09,598.68,0.6048243]
[1740985771314,1.036,600.09,598.69,0.27075602]
[1740985771515,0.33328889,600.08,598.7,0.60481314]
[1740985771812,0.33328889,600.08,598.41,1.22482446]
[1740985771813,0.33328889,600.08,598.71,0.60480756]
[1740985772013,1.07028889,600.08,598.72,0.33404596]
[1740985772214,1.07028889,600.08,598.73,0.27075677]